{"text_format":"2","workbook":"xlsx","n_sheets":1,"sheets":["Area Funzionari EQ"],"not_rendered":{"charts":0,"images":0,"macros":0,"external_links":0,"defined_names":0,"comments":0,"pivot_tables":0},"unopened":[],"bounds":{"document_bytes":16777216,"sheet_cells":100000,"run_cost":"one","rows_first":2000,"rows_last":500,"rows_between":2000,"halvings":0,"cell_chars":16384,"cell_head_chars":4096},"cells_cut":0,"cells_raw":0,"read":"whole","date_system":"1900"}

{"sheet":"Area Funzionari EQ","index":0,"n_rows":110,"n_cols":7,"rows_kept":110,"cut":false,"hidden":false,"merged":[[0,0,0,6],[1,0,1,6],[3,0,3,6],[4,0,4,6],[25,0,25,3],[6,0,6,6],[21,0,22,0],[9,0,9,1],[14,0,14,2],[15,0,15,2],[10,5,10,6],[11,2,11,3],[8,4,8,6],[8,0,8,1],[10,0,10,1],[11,0,11,1],[33,0,33,5],[26,2,26,3],[27,2,27,3],[9,4,9,6],[19,2,19,4],[27,4,27,6],[11,5,11,6],[21,2,21,4],[22,2,22,4],[14,3,14,6],[15,3,15,6],[10,2,10,3],[29,0,29,3],[50,0,50,6],[51,0,51,1],[58,0,58,1],[63,2,63,6],[62,2,62,6],[88,3,88,4],[90,3,90,4],[65,2,65,6],[79,2,79,3],[80,2,80,3],[80,4,80,5],[79,4,79,5],[78,2,78,3],[78,4,78,5],[82,2,82,3],[82,4,82,5],[109,3,109,5],[98,1,98,2],[109,0,109,1],[101,0,101,6],[103,0,103,6],[92,3,92,4],[95,1,95,2],[96,1,96,2],[97,1,97,2],[18,2,18,4],[89,3,89,4],[81,4,81,5],[86,3,86,4],[68,0,68,6],[61,0,61,6],[85,0,85,4],[81,2,81,3],[64,2,64,6],[45,1,45,2],[91,3,91,4],[87,3,87,4],[47,1,47,2],[19,0,20,0],[20,2,20,4],[30,2,30,3],[31,2,31,3],[31,4,31,6],[46,1,46,2],[43,1,43,2],[44,1,44,2],[35,0,35,1],[36,0,36,1],[40,0,40,2],[41,1,41,2],[42,1,42,2],[37,0,37,1],[34,0,34,1]]}
["COMUNE DI MONNO"]
["(Provincia di Brescia)"]
[]
["SCHEDA DI VALUTAZIONE "]
["FUNZIONARIO con EQ"]
[]
["ANNO"]
[]
["Dipendente",null,"Data di nascita","Data di assunzione","Servizio"]
[]
["Area",null,"Profilo professionale",null,"Anzianità nell'Ente","Anzianità nel profilo professionale ricoperto"]
["FUNZIONARI ed EQ"]
[]
[]
["Valutatore",null,null,"Periodo di valutazione"]
[]
[]
[]
["Ambito","Macro area valutativa","Elementi di valutazione",null,null,"Peso"]
["Performance organizzativa","Risultato di ente","Risultati della salute economico - finanziaria, della salute organizzativa, degli impatti e della performance complessiva dell'Ente, espressi in termini percentuali in un unico valore di sintesi",null,null,10]
[null,"Risultato di gruppo","Grado di raggiungimento degli obiettivi e delle attività strutturali di PEG, asseganti all'area/Settore/ufficio di responsabilità",null,null,20]
["Performance individuale","Risultato individuale","Grado di raggiungimento degli obiettivi e delle attività strutturali di PEG, assegnati al valutato o in cui è coinvolto, misurati attraverso appositi indicatori",null,null,30]
[null,"Competenze professionali/comportamentali",null,null,null,40]
[{"$nulls":5},{"$f":"SUM(F20:F23)","v":100}]
[]
["Risultato di ente (peso 10)"]
["Valore raggiunto","Peso","Punteggio finale"]
[{"$f":"IF(C28>50,\"il punteggio non può essere superiore a 50\",C28*2/100)","v":0},10,null,null,"*valore da prendere dalla scheda DIMENSIONI PERFORMANCE ORGANIZZATIVA"]
[]
["Risultato di Gruppo (peso 20)"]
["Valore raggiunto","Peso","Punteggio finale"]
[{"$f":"IF(C32>50,\"il punteggio non può essere superiore a 50\",C32*2/100)","v":0},20,null,null,"*valore da prendere dalla Relazione del NdV"]
[]
["Risultato individuale (peso 30)"]
["Obiettivi assegnati",null,"Valore raggiunto","Peso","Apporto individuale*","Totale"]
[{"$nulls":5},{"$f":"C36*D36*E36/2","v":0}]
[{"$nulls":5},0]
[{"$nulls":5},0]
["TOTALI",null,null,{"$f":"F22","v":30},null,{"$f":"SUM(F36:F38)","v":0}]
[]
["*Apporto individuale al raggiungimento degli obiettivi"]
["Valore","Livello di apporto"]
[0,"Nessun apporto"]
[1,"Apporto insufficiente"]
[2,"Apporto sufficiente"]
[3,"Apporto buono"]
[4,"Apporto discreto"]
[5,"Apporto ottimo"]
[]
[]
["Competenze professionali / comportamentali  (peso 40)"]
["Competenze assegnate",null,"Grading del profilo professionale","Peso","*Valutazione (da 1 a 4)","Verifica intermedia","Punteggio finale"]
[null,null,null,{"$f":"IF(C53=0,\" \",C53/($C$59/$D$60))","v":" "},null,null,{"$f":"IF(E53=0,\" \",(D53*E53)*1.25)","v":" "}]
[null,null,null,{"$f":"IF(C54=0,\" \",C54/($C$59/$D$60))","v":" "},null,null," "]
[null,null,null," ",null,null," "]
[null,null,null," ",null,null,{"$f":"IF(E56=0,\" \",(D56*E56)*1.25)","v":" "}]
[null,null,null," ",null,null," "]
[null,null,null," ",null,null," "]
["TOTALI",null,{"$f":"SUM(C53:C58)","v":0},{"$f":"SUM(D53:D58)","v":0},null,null,{"$f":"SUM(G53:G58)","v":0}]
[null,null,null,{"$f":"F23","v":40}]
[]
["*Valutazione"]
[1,"Possesso della competenza limitata agli elementi di base","Capacità di applicazione parziale e limitata a contesti di bassa complessità"]
[2,"Discreto possesso della competenza ","Capacità di applicazione discreta anche in contesti di media complessità"]
[3,"Possesso ampio ed approfondito della competenza","Capacità di applicazione discreta anche in contesti di rilevante complessità"]
[4,"Specialista della competenza e punto di riferimento professionale","Punto di forza"]
[]
[]
["Valutazione complessiva"]
["Area valutativa","Peso","Punteggio max","% Punteggio minimo","Punteggio minimo","Verifica intermedia","Punteggio finale"]
["Risultato di ente",0.1,50,0.5,{"$f":"C71*D71","v":25},null,{"$f":"C28","v":0}]
["Risultato di Gruppo",0.2,50,0.5,{"$f":"C72*D72","v":25}]
["Risultato individuale",0.3,100,0.5,{"$f":"C73*D73","v":50},null,{"$f":"F39","v":0}]
["Competenze professionali/  comportamentali",0.4,300,0.6,{"$f":"C74*D74","v":180},null,{"$f":"G59","v":0}]
["TOTALI",1,500,null,{"$f":"SUM(E71:E74)","v":280},null,{"$f":"SUM(G71:G74)","v":0}]
[]
["CORRETTIVO GIORNI DI ASSENZA NELL’ANNO                            GIORNI DI ASSENZA       "]
[]
["Scaglioni","Giorni di assenza","Calcolo punteggio",null,"Punteggio max per scaglione"]
[3,"Oltre 61 gg","n. gg x 1   ",null,"(non definibile a priori)"]
[2,"Da 31 a 60 gg.","n. gg x 0,7  ",null,42]
[1,"Da 8 a 30 gg.","n. gg x 0,5  ",null,15]
[0,"da 1 a 7 gg","-",null,0]
[]
[]
["FASCE DI RIFERIMENTO"]
["Range Punti","Fasce","Produttività e Risultato Posiz. Organizz.","Coeff. Progr. Orizzontale"]
["Da 451 a 500 punti","A",100,10]
["Da 400 a 450 punti","B",90,8]
["Da 351 a 399 punti","C",79.900000000000006,6]
["Da 301 a 350 punti","D",70,4]
["Da 280 a 300 punti","E",60,2]
["Da 0 a 279 punti","F",0,0]
[]
[]
[null,"VALUTAZIONE",null,{"$f":"G75","v":0}]
[null,"CORRETTIVO ASSENZE",null,{"$f":"IF(F77<=15,F77*0.5,IF(F77<=35,7.5+(F77-15)*0.7,21.5+(F77-35)))","v":0}]
[null,"PUNTEGGIO COMPLESSIVO FINALE",null,{"$f":"D96-D97","v":0}]
[null,"FASCIA DI RIFERIMENTO",null,{"$f":"IF(D98<279,\"F\",IF(D98<=300,\"E\",IF(D98<=350,\"D\",IF(D98<=400,\"C\",IF(D98<=450,\"B\",IF(D98<=500,\"A\"))))))","v":"F"}]
[]
[]
["Osservazioni del valutatore: "]
[]
["Osservazioni del valutato: "]
[]
[]
["Monno ,_________________-"]
[]
[]
["Firma del Valutatore",null,null,"Firma del Valutato"]